[Event "Kvibergspelen 2018"]
[Site "Prioritet Serneke Arena, Krutvagen 2, Gothenburg, Sweden"]
[Date "2018.04.20"]
[Round "4.7"]
[White "Lindberg, Bengt"]
[Black "Ask, Josef"]
[Result "1-0"]
[TimeControl "15 minutes + 5 seconds per move from move one (Round 1 - 4) / 90 minutes + 30 seconds per move from move one (Round 5 - 8)"]
[WhiteTitle "IM"]
[BlackTitle "FM"]
[WhiteFideId "1700359"]
[BlackFideId "1704583"]
[WhiteElo "2385"]
[BlackElo "2173"]

1. e4 {[%clk 00:15:09]} {[%emt 00:00:15]} e5 {[%clk 00:15:08]} {[%emt
00:00:02]} 2. Nf3 {[%clk 00:15:13]} {[%emt 00:00:02]} Nc6 {[%clk 00:15:10]}
{[%emt 00:00:02]} 3. Bb5 {[%clk 00:15:14]} {[%emt 00:00:04]} g6 {[%clk
00:15:08]} {[%emt 00:00:07]} 4. O-O {[%clk 00:15:14]} {[%emt 00:00:04]} Bg7
{[%clk 00:15:09]} {[%emt 00:00:04]} 5. c3 {[%clk 00:15:17]} {[%emt 00:00:03]}
Nge7 {[%clk 00:15:08]} {[%emt 00:00:07]} 6. d4 {[%clk 00:15:20]} {[%emt
00:00:02]} exd4 {[%clk 00:15:08]} {[%emt 00:00:04]} 7. cxd4 {[%clk 00:15:23]}
{[%emt 00:00:03]} d5 {[%clk 00:15:10]} {[%emt 00:00:03]} 8. exd5 {[%clk
00:15:25]} {[%emt 00:00:03]} Nxd5 {[%clk 00:15:13]} {[%emt 00:00:02]} 9. Re1+
{[%clk 00:15:27]} {[%emt 00:00:03]} Be6 {[%clk 00:15:14]} {[%emt 00:00:03]} 10.
Bg5 {[%clk 00:15:27]} {[%emt 00:00:05]} Qd6 {[%clk 00:15:17]} {[%emt 00:00:04]}
11. Nc3 {[%clk 00:15:27]} {[%emt 00:00:04]} O-O {[%clk 00:15:13]} {[%emt
00:00:09]} 12. Qd2 {[%clk 00:14:15]} {[%emt 00:01:16]} Rfe8 {[%clk 00:15:02]}
{[%emt 00:00:16]} 13. a3 {[%clk 00:13:48]} {[%emt 00:00:32]} f6 {[%clk
00:13:30]} {[%emt 00:01:37]} 14. Ne4 {[%clk 00:13:36]} {[%emt 00:00:17]} Qf8
{[%clk 00:13:28]} {[%emt 00:00:08]} 15. Bh4 {[%clk 00:12:28]} {[%emt 00:01:12]}
Rad8 {[%clk 00:13:02]} {[%emt 00:00:31]} 16. Nc5 {[%clk 00:11:39]} {[%emt
00:00:55]} Bc8 {[%clk 00:12:46]} {[%emt 00:00:21]} 17. Bc4 {[%clk 00:11:06]}
{[%emt 00:00:37]} Rxe1+ {[%clk 00:12:29]} {[%emt 00:00:22]} 18. Rxe1 {[%clk
00:11:03]} {[%emt 00:00:08]} Kh8 {[%clk 00:12:12]} {[%emt 00:00:22]} 19. b4
{[%clk 00:10:25]} {[%emt 00:00:43]} Bh6 {[%clk 00:11:31]} {[%emt 00:00:47]} 20.
Qa2 {[%clk 00:09:45]} {[%emt 00:00:45]} Nb6 {[%clk 00:11:05]} {[%emt 00:00:31]}
21. Be6 {[%clk 00:09:44]} {[%emt 00:00:05]} Bxe6 {[%clk 00:09:39]} {[%emt
00:01:33]} 22. Nxe6 {[%clk 00:09:44]} {[%emt 00:00:05]} Qf7 {[%clk 00:09:39]}
{[%emt 00:00:05]} 23. d5 {[%clk 00:03:18]} {[%emt 00:06:30]} Rxd5 {[%clk
00:08:52]} {[%emt 00:00:52]} 24. Qa1 {[%clk 00:02:48]} {[%emt 00:00:36]} Nd7
{[%clk 00:07:31]} {[%emt 00:01:26]} 25. Nxc7 {[%clk 00:02:34]} {[%emt
00:00:18]} Rf5 {[%clk 00:07:06]} {[%emt 00:00:29]} 26. Bg3 {[%clk 00:02:16]}
{[%emt 00:00:23]} Bf8 {[%clk 00:05:52]} {[%emt 00:01:19]} 27. Nd4 {[%clk
00:01:57]} {[%emt 00:00:24]} Nxd4 {[%clk 00:04:21]} {[%emt 00:01:36]} 28. Qxd4
{[%clk 00:02:01]} {[%emt 00:00:01]} b6 {[%clk 00:03:55]} {[%emt 00:00:31]} 29.
Ne6 {[%clk 00:01:45]} {[%emt 00:00:19]} Kg8 {[%clk 00:02:58]} {[%emt 00:01:05]}
30. Nxf8 {[%clk 00:01:39]} {[%emt 00:00:11]} Nxf8 {[%clk 00:02:58]} {[%emt
00:00:05]} 31. h4 {[%clk 00:01:18]} {[%emt 00:00:25]} Rd5 {[%clk 00:02:56]}
{[%emt 00:00:08]} 32. Qc3 {[%clk 00:01:16]} {[%emt 00:00:07]} Rd8 {[%clk
00:02:44]} {[%emt 00:00:17]} 33. Bf4 {[%clk 00:01:10]} {[%emt 00:00:10]} Kg7
{[%clk 00:02:18]} {[%emt 00:00:31]} 34. Qe3 {[%clk 00:00:49]} {[%emt 00:00:25]}
Kg8 {[%clk 00:01:54]} {[%emt 00:00:29]} 35. g3 {[%clk 00:00:40]} {[%emt
00:00:14]} Rd7 {[%clk 00:01:39]} {[%emt 00:00:21]} 36. Bh6 {[%clk 00:00:40]}
{[%emt 00:00:04]} Rd8 {[%clk 00:01:37]} {[%emt 00:00:07]} 37. Qe7 {[%clk
00:00:33]} {[%emt 00:00:12]} Rd7 {[%clk 00:01:32]} {[%emt 00:00:11]} 38. Qe8
{[%clk 00:00:34]} {[%emt 00:00:03]} Qxe8 {[%clk 00:00:51]} {[%emt 00:00:46]} 39.
Rxe8 {[%emt 00:00:01]} Rf7 40. g4 {[%clk 00:00:36]} {[%emt 00:00:06]} f5 {[%clk
00:01:00]} {[%emt 00:00:01]} 41. g5 {[%clk 00:00:37]} {[%emt 00:00:04]} f4
{[%clk 00:01:04]} 42. f3 {[%clk 00:00:37]} {[%emt 00:00:05]} Rf5 {[%clk
00:01:08]} {[%emt 00:00:01]} 43. Kf2 {[%clk 00:00:41]} Rf7 {[%clk 00:01:12]}
{[%emt 00:00:02]} 44. b5 {[%clk 00:00:45]} Rf5 {[%clk 00:01:12]} {[%emt
00:00:05]} 45. a4 {[%clk 00:00:49]} {[%emt 00:00:01]} Rf7 {[%clk 00:01:15]}
{[%emt 00:00:02]} 46. Ke2 {[%clk 00:00:53]} {[%emt 00:00:02]} Rf5 {[%clk
00:01:18]} {[%emt 00:00:02]} 47. Kd3 {[%clk 00:00:56]} Rf7 {[%clk 00:01:21]}
{[%emt 00:00:02]} 48. Ke4 {[%clk 00:00:55]} {[%emt 00:00:05]} Rf5 {[%clk
00:01:20]} {[%emt 00:00:06]} 49. Rxf8+ {[%clk 00:00:47]} {[%emt 00:00:13]} Rxf8
{[%clk 00:01:24]} 50. Bxf8 {[%clk 00:00:51]} {[%emt 00:00:02]} Kxf8 {[%clk
00:01:28]} {[%emt 00:00:01]} 51. Kxf4 {[%clk 00:00:54]} Kg8 {[%emt 00:00:07]}
1-0

[Event "Kvibergspelen 2018"]
[Site "Prioritet Serneke Arena, Krutvagen 2, Gothenburg, Sweden"]
[Date "2018.04.20"]
[Round "4.8"]
[White "Bellon Lopez, Juan"]
[Black "Bjorklund, Thomas"]
[Result "0-1"]
[TimeControl "15 minutes + 5 seconds per move from move one (Round 1 - 4) / 90 minutes + 30 seconds per move from move one (Round 5 - 8)"]
[WhiteTitle "GM"]
[WhiteFideId "2200031"]
[BlackFideId "1724576"]
[WhiteElo "2352"]
[BlackElo "2156"]

1. d4 {[%clk 00:15:09]} {[%emt 00:00:01]} d5 {[%clk 00:15:09]} {[%emt
00:00:01]} 2. Bg5 {[%clk 00:15:13]} {[%emt 00:00:01]} g6 {[%clk 00:15:06]}
{[%emt 00:00:08]} 3. h4 {[%clk 00:15:07]} {[%emt 00:00:11]} h6 {[%clk
00:15:02]} {[%emt 00:00:09]} 4. Bf4 {[%clk 00:15:09]} {[%emt 00:00:02]} Bg7
{[%clk 00:15:05]} {[%emt 00:00:02]} 5. Nf3 {[%clk 00:15:03]} {[%emt 00:00:12]}
c5 {[%clk 00:15:03]} {[%emt 00:00:07]} 6. e3 {[%clk 00:14:58]} {[%emt
00:00:10]} Nf6 {[%clk 00:15:05]} {[%emt 00:00:03]} 7. c3 {[%clk 00:14:54]}
{[%emt 00:00:10]} Nc6 {[%clk 00:15:07]} {[%emt 00:00:03]} 8. Nbd2 {[%clk
00:14:55]} {[%emt 00:00:04]} Bg4 {[%clk 00:14:43]} {[%emt 00:00:29]} 9. Qb3
{[%clk 00:14:22]} {[%emt 00:00:37]} Qb6 {[%clk 00:14:25]} {[%emt 00:00:24]} 10.
Ne5 {[%clk 00:14:18]} {[%emt 00:00:08]} Qxb3 {[%clk 00:13:06]} {[%emt
00:01:24]} 11. axb3 {[%clk 00:14:02]} {[%emt 00:00:22]} Nxe5 {[%clk 00:12:52]}
{[%emt 00:00:18]} 12. Bxe5 {[%clk 00:13:55]} {[%emt 00:00:12]} cxd4 {[%clk
00:12:28]} {[%emt 00:00:29]} 13. Bb5+ {[%clk 00:13:28]} {[%emt 00:00:32]} Bd7
{[%clk 00:12:30]} {[%emt 00:00:03]} 14. Bxd7+ {[%clk 00:13:32]} {[%emt
00:00:01]} Kxd7 {[%clk 00:12:34]} {[%emt 00:00:01]} 15. Bxf6 {[%clk 00:13:06]}
{[%emt 00:00:30]} Bxf6 {[%clk 00:12:20]} {[%emt 00:00:19]} 16. exd4 {[%clk
00:13:10]} {[%emt 00:00:01]} e5 {[%clk 00:12:13]} {[%emt 00:00:12]} 17. dxe5
{[%clk 00:13:09]} {[%emt 00:00:06]} Bxe5 {[%clk 00:12:16]} {[%emt 00:00:01]} 18.
Nf3 {[%clk 00:13:10]} {[%emt 00:00:04]} Bg7 {[%clk 00:12:10]} {[%emt 00:00:11]}
19. O-O-O {[%clk 00:13:05]} {[%emt 00:00:11]} Kc6 {[%clk 00:12:08]} {[%emt
00:00:07]} 20. Nd4+ {[%clk 00:12:41]} {[%emt 00:00:29]} Bxd4 {[%clk 00:12:11]}
{[%emt 00:00:02]} 21. Rxd4 {[%clk 00:12:45]} Rhe8 {[%clk 00:11:45]} {[%emt
00:00:32]} 22. Rhd1 {[%clk 00:12:48]} {[%emt 00:00:02]} Rad8 {[%clk 00:09:34]}
{[%emt 00:02:16]} 23. c4 {[%clk 00:12:41]} {[%emt 00:00:13]} Re5 {[%clk
00:09:16]} {[%emt 00:00:22]} 24. f4 {[%clk 00:12:37]} {[%emt 00:00:09]} Re2
{[%clk 00:09:19]} {[%emt 00:00:02]} 25. g4 {[%clk 00:11:35]} {[%emt 00:01:06]}
Rh2 {[%clk 00:08:47]} {[%emt 00:00:37]} 26. f5 {[%clk 00:11:23]} {[%emt
00:00:18]} Rxh4 {[%clk 00:08:40]} {[%emt 00:00:12]} 27. fxg6 {[%clk 00:11:26]}
{[%emt 00:00:01]} fxg6 {[%clk 00:08:43]} {[%emt 00:00:02]} 28. cxd5+ {[%clk
00:11:25]} {[%emt 00:00:06]} Kd6 {[%clk 00:08:28]} {[%emt 00:00:21]} 29. Re4
{[%clk 00:11:27]} {[%emt 00:00:01]} h5 {[%clk 00:08:19]} {[%emt 00:00:16]} 30.
Re6+ {[%clk 00:11:23]} {[%emt 00:00:09]} Kc5 {[%clk 00:08:22]} {[%emt
00:00:01]} 31. gxh5 {[%clk 00:07:48]} {[%emt 00:03:40]} Rxh5 {[%clk 00:08:16]}
{[%emt 00:00:12]} 32. d6 {[%clk 00:06:46]} {[%emt 00:01:06]} Rd7 {[%clk
00:06:03]} {[%emt 00:02:19]} 33. Rxg6 {[%clk 00:05:21]} {[%emt 00:01:30]} Rd5
{[%clk 00:05:58]} {[%emt 00:00:09]} 34. b4+ {[%clk 00:04:41]} {[%emt 00:00:45]}
Kc6 {[%clk 00:05:56]} {[%emt 00:00:07]} 35. Rxd5 {[%clk 00:04:26]} {[%emt
00:00:20]} Kxd5 {[%clk 00:05:59]} {[%emt 00:00:02]} 36. Kc2 {[%clk 00:04:23]}
{[%emt 00:00:08]} Rxd6 {[%clk 00:05:20]} {[%emt 00:00:45]} 37. Rg7 {[%clk
00:04:27]} Kc6 {[%clk 00:05:20]} {[%emt 00:00:05]} 38. Kc3 {[%clk 00:04:29]}
{[%emt 00:00:03]} Rf6 {[%clk 00:05:21]} {[%emt 00:00:03]} 39. Rg5 {[%clk
00:04:24]} {[%emt 00:00:09]} a6 {[%clk 00:05:14]} {[%emt 00:00:13]} 40. Kc4
{[%clk 00:04:26]} {[%emt 00:00:03]} Rf4+ {[%clk 00:05:16]} {[%emt 00:00:03]} 41.
Kb3 {[%clk 00:04:28]} {[%emt 00:00:03]} Rf3+ {[%clk 00:03:53]} {[%emt
00:01:28]} 42. Ka4 {[%clk 00:04:33]} Rf2 {[%clk 00:03:16]} {[%emt 00:00:42]} 43.
Rg6+ {[%clk 00:04:24]} {[%emt 00:00:14]} Kc7 {[%clk 00:03:19]} {[%emt
00:00:03]} 44. b3 {[%clk 00:04:16]} {[%emt 00:00:13]} Ra2# {[%clk 00:03:16]}
{[%emt 00:00:07]} 0-1

[Event "Kvibergspelen 2018"]
[Site "Prioritet Serneke Arena, Krutvagen 2, Gothenburg, Sweden"]
[Date "2018.04.20"]
[Round "4.9"]
[White "Ronneland, Daniel"]
[Black "Seo, Jung Min"]
[Result "0-1"]
[TimeControl "15 minutes + 5 seconds per move from move one (Round 1 - 4) / 90 minutes + 30 seconds per move from move one (Round 5 - 8)"]
[BlackTitle "FM"]
[WhiteFideId "1702130"]
[BlackFideId "1734687"]
[WhiteElo "2201"]
[BlackElo "2349"]

1. d4 {[%clk 00:15:09]} {[%emt 00:12:04]} f5 {[%clk 00:15:10]} {[%emt
00:00:01]} 2. g3 {[%clk 00:15:09]} {[%emt 00:00:05]} Nf6 {[%clk 00:15:13]}
{[%emt 00:00:01]} 3. Bg2 {[%clk 00:15:13]} g6 {[%clk 00:15:17]} {[%emt
00:00:01]} 4. c3 {[%clk 00:15:15]} {[%emt 00:00:03]} Bg7 {[%clk 00:15:22]} 5.
Qb3 {[%clk 00:15:19]} d5 {[%clk 00:14:53]} {[%emt 00:00:34]} 6. Nh3 {[%clk
00:15:11]} {[%emt 00:00:12]} c6 {[%clk 00:14:55]} {[%emt 00:00:06]} 7. O-O
{[%clk 00:15:04]} {[%emt 00:00:11]} O-O {[%clk 00:14:58]} {[%emt 00:00:02]} 8.
Nd2 {[%clk 00:15:04]} {[%emt 00:00:04]} Na6 {[%clk 00:14:53]} {[%emt 00:00:10]}
9. Nf3 {[%clk 00:13:54]} {[%emt 00:01:15]} Kh8 {[%clk 00:14:55]} {[%emt
00:00:04]} 10. Nf4 {[%clk 00:13:44]} {[%emt 00:00:15]} Qb6 {[%clk 00:14:30]}
{[%emt 00:00:30]} 11. Nd3 {[%clk 00:12:33]} {[%emt 00:01:15]} Nb8 {[%clk
00:14:22]} {[%emt 00:00:13]} 12. Qa3 {[%clk 00:11:53]} {[%emt 00:00:45]} Qd8
{[%clk 00:14:16]} {[%emt 00:00:12]} 13. Bf4 {[%clk 00:11:25]} {[%emt 00:00:33]}
Nbd7 {[%clk 00:14:14]} {[%emt 00:00:07]} 14. Nfe5 {[%clk 00:08:50]} {[%emt
00:02:39]} Nxe5 {[%clk 00:14:16]} {[%emt 00:00:04]} 15. Nxe5 {[%clk 00:08:42]}
{[%emt 00:00:13]} Nh5 {[%clk 00:14:13]} {[%emt 00:00:08]} 16. Bg5 {[%clk
00:08:23]} {[%emt 00:00:24]} Bf6 {[%clk 00:13:48]} {[%emt 00:00:31]} 17. Bh6
{[%clk 00:07:41]} {[%emt 00:00:46]} Bg7 {[%clk 00:13:04]} {[%emt 00:00:49]} 18.
Bg5 {[%clk 00:07:43]} {[%emt 00:00:03]} Nf6 {[%clk 00:12:54]} {[%emt 00:00:16]}
19. Bxf6 {[%clk 00:07:41]} {[%emt 00:00:07]} exf6 {[%clk 00:12:30]} {[%emt
00:00:29]} 20. Nd3 {[%clk 00:07:29]} {[%emt 00:00:16]} Re8 {[%clk 00:12:18]}
{[%emt 00:00:17]} 21. Rae1 {[%clk 00:07:28]} {[%emt 00:00:05]} Be6 {[%clk
00:12:13]} {[%emt 00:00:10]} 22. f3 {[%clk 00:07:26]} {[%emt 00:00:07]} Qe7
{[%clk 00:11:20]} {[%emt 00:00:59]} 23. Qxe7 {[%clk 00:07:18]} {[%emt
00:00:13]} Rxe7 {[%clk 00:11:24]} 24. e4 {[%clk 00:06:35]} {[%emt 00:00:48]}
dxe4 {[%clk 00:11:21]} {[%emt 00:00:09]} 25. fxe4 {[%clk 00:06:39]} Bc4 {[%clk
00:11:00]} {[%emt 00:00:26]} 26. Re3 {[%clk 00:04:38]} {[%emt 00:02:02]} fxe4
{[%clk 00:10:41]} {[%emt 00:00:28]} 27. Rd1 {[%clk 00:02:45]} {[%emt 00:01:58]}
f5 {[%clk 00:10:05]} {[%emt 00:00:42]} 28. b3 {[%clk 00:02:37]} {[%emt
00:00:12]} Bf7 {[%clk 00:09:56]} {[%emt 00:00:14]} 29. Ne5 {[%clk 00:02:34]}
{[%emt 00:00:09]} Bxe5 {[%clk 00:09:45]} {[%emt 00:00:16]} 30. dxe5 {[%clk
00:02:37]} {[%emt 00:00:01]} Rae8 {[%clk 00:09:43]} {[%emt 00:00:06]} 31. g4
{[%clk 00:02:30]} {[%emt 00:00:13]} Rxe5 {[%clk 00:09:46]} {[%emt 00:00:02]} 32.
gxf5 {[%clk 00:02:33]} {[%emt 00:00:02]} gxf5 {[%clk 00:09:50]} {[%emt
00:00:01]} 33. Rd7 {[%clk 00:02:25]} {[%emt 00:00:12]} R5e7 {[%clk 00:09:09]}
{[%emt 00:00:47]} 34. Rxe7 {[%clk 00:02:23]} {[%emt 00:00:07]} Rxe7 {[%clk
00:09:13]} {[%emt 00:00:01]} 35. Kf2 {[%clk 00:02:27]} Rd7 {[%clk 00:09:10]}
{[%emt 00:00:09]} 36. Kg3 {[%clk 00:02:30]} {[%emt 00:00:01]} Rd2 {[%clk
00:08:59]} {[%emt 00:00:15]} 37. Bh3 {[%clk 00:02:29]} {[%emt 00:00:07]} Bg6
{[%clk 00:09:03]} {[%emt 00:00:01]} 38. a4 {[%clk 00:02:24]} {[%emt 00:00:09]}
Kg7 {[%clk 00:08:49]} {[%emt 00:00:19]} 39. Kf4 {[%clk 00:01:40]} {[%emt
00:00:48]} Kf6 {[%clk 00:08:23]} {[%emt 00:00:32]} 0-1

[Event "Kvibergspelen 2018"]
[Site "Prioritet Serneke Arena, Krutvagen 2, Gothenburg, Sweden"]
[Date "2018.04.20"]
[Round "4.11"]
[White "Fransson, Patrick"]
[Black "Rasti, Arvin"]
[Result "1/2-1/2"]
[TimeControl "15 minutes + 5 seconds per move from move one (Round 1 - 4) / 90 minutes + 30 seconds per move from move one (Round 5 - 8)"]
[WhiteFideId "1709305"]
[BlackFideId "1741160"]
[WhiteElo "2176"]
[BlackElo "1920"]

1. d4 {[%clk 00:15:07]} {[%emt 00:00:02]} g6 {[%clk 00:15:09]} {[%emt
00:00:02]} 2. Bg5 {[%clk 00:14:56]} {[%emt 00:00:16]} Bg7 {[%clk 00:15:11]}
{[%emt 00:00:02]} 3. e3 {[%clk 00:14:59]} {[%emt 00:00:03]} d6 {[%clk
00:15:13]} {[%emt 00:00:03]} 4. c3 {[%clk 00:15:02]} {[%emt 00:00:02]} Nd7
{[%clk 00:15:16]} {[%emt 00:00:02]} 5. Bd3 {[%clk 00:15:02]} {[%emt 00:00:04]}
Ngf6 {[%clk 00:15:17]} {[%emt 00:00:04]} 6. Nd2 {[%clk 00:15:02]} {[%emt
00:00:05]} O-O {[%clk 00:15:06]} {[%emt 00:00:16]} 7. h4 {[%clk 00:15:02]}
{[%emt 00:00:05]} h6 {[%clk 00:14:47]} {[%emt 00:00:25]} 8. Bxf6 {[%clk
00:14:44]} {[%emt 00:00:24]} Nxf6 {[%clk 00:14:49]} {[%emt 00:00:02]} 9. Qc2
{[%clk 00:14:40]} {[%emt 00:00:10]} e5 {[%clk 00:14:25]} {[%emt 00:00:29]} 10.
dxe5 {[%clk 00:14:01]} {[%emt 00:00:44]} dxe5 {[%clk 00:14:28]} {[%emt
00:00:02]} 11. O-O-O {[%clk 00:13:57]} {[%emt 00:00:08]} Qe7 {[%clk 00:14:15]}
{[%emt 00:00:18]} 12. Ne2 {[%clk 00:13:13]} {[%emt 00:00:50]} Ng4 {[%clk
00:13:10]} {[%emt 00:01:09]} 13. Rdf1 {[%clk 00:12:23]} {[%emt 00:00:54]} f5
{[%clk 00:13:00]} {[%emt 00:00:16]} 14. Ng3 {[%clk 00:09:01]} {[%emt 00:03:28]}
e4 {[%clk 00:12:27]} {[%emt 00:00:37]} 15. Be2 {[%clk 00:08:54]} {[%emt
00:00:12]} Ne5 {[%clk 00:10:57]} {[%emt 00:01:35]} 16. f4 {[%clk 00:08:37]}
{[%emt 00:00:21]} exf3 {[%clk 00:10:06]} {[%emt 00:00:56]} 17. gxf3 {[%clk
00:08:38]} {[%emt 00:00:04]} Qc5 {[%clk 00:09:39]} {[%emt 00:00:32]} 18. f4
{[%clk 00:07:10]} {[%emt 00:01:33]} Qxe3 {[%clk 00:09:02]} {[%emt 00:00:43]} 19.
fxe5 {[%clk 00:06:54]} {[%emt 00:00:20]} Qxg3 {[%clk 00:09:05]} {[%emt
00:00:02]} 20. Rhg1 {[%clk 00:06:32]} {[%emt 00:00:28]} Qxe5 {[%clk 00:09:05]}
{[%emt 00:00:05]} 21. Bc4+ {[%emt 00:02:36]} Kh7 {[%emt 00:00:03]} 22. Nf3
{[%emt 00:00:10]} Qf6 {[%emt 00:00:02]} 23. Nd4 {[%emt 00:00:08]} 1/2-1/2

[Event "Kvibergspelen 2018"]
[Site "Prioritet Serneke Arena, Krutvagen 2, Gothenburg, Sweden"]
[Date "2018.04.20"]
[Round "4.12"]
[White "Heidenfors, Ronald"]
[Black "Rydstrom, Tom"]
[Result "0-1"]
[TimeControl "15 minutes + 5 seconds per move from move one (Round 1 - 4) / 90 minutes + 30 seconds per move from move one (Round 5 - 8)"]
[BlackTitle "FM"]
[WhiteFideId "1724053"]
[BlackFideId "1714830"]
[WhiteElo "2009"]
[BlackElo "2357"]

1. e4 {[%clk 00:15:07]} {[%emt 00:00:02]} c5 {[%clk 00:14:56]} {[%emt
00:00:15]} 2. Nf3 {[%clk 00:15:03]} {[%emt 00:00:08]} e6 {[%clk 00:15:00]}
{[%emt 00:00:02]} 3. d4 {[%clk 00:15:05]} {[%emt 00:00:02]} cxd4 {[%clk
00:15:04]} {[%emt 00:00:01]} 4. Nxd4 {[%clk 00:15:08]} {[%emt 00:00:02]} a6
{[%clk 00:15:05]} {[%emt 00:00:05]} 5. a3 {[%clk 00:15:10]} {[%emt 00:00:03]}
Nf6 {[%clk 00:15:06]} {[%emt 00:00:04]} 6. Nc3 {[%clk 00:15:12]} {[%emt
00:00:02]} Qc7 {[%clk 00:14:59]} {[%emt 00:00:12]} 7. Be2 {[%clk 00:15:03]}
{[%emt 00:00:14]} b5 {[%clk 00:14:23]} {[%emt 00:00:41]} 8. f4 {[%clk
00:12:23]} {[%emt 00:02:45]} d6 {[%clk 00:13:05]} {[%emt 00:01:23]} 9. Bf3
{[%clk 00:11:51]} {[%emt 00:00:36]} Bb7 {[%clk 00:12:57]} {[%emt 00:00:14]} 10.
O-O {[%clk 00:11:29]} {[%emt 00:00:25]} Nbd7 {[%clk 00:12:26]} {[%emt
00:00:37]} 11. Kh1 {[%clk 00:10:28]} {[%emt 00:01:06]} Rc8 {[%clk 00:11:13]}
{[%emt 00:01:17]} 12. Re1 {[%clk 00:07:58]} {[%emt 00:02:35]} e5 {[%clk
00:10:39]} {[%emt 00:00:40]} 13. Nf5 {[%clk 00:07:16]} {[%emt 00:00:46]} g6
{[%clk 00:09:27]} {[%emt 00:01:18]} 14. Ne3 {[%clk 00:06:05]} {[%emt 00:01:16]}
Be7 {[%clk 00:09:30]} {[%emt 00:00:02]} 15. f5 {[%clk 00:04:42]} {[%emt
00:01:28]} O-O {[%clk 00:09:15]} {[%emt 00:00:19]} 16. g4 {[%clk 00:04:27]}
{[%emt 00:00:20]} Nc5 {[%clk 00:07:48]} {[%emt 00:01:32]} 17. Ned5 {[%clk
00:03:47]} {[%emt 00:00:44]} Nxd5 {[%clk 00:07:51]} {[%emt 00:00:02]} 18. Nxd5
{[%clk 00:03:13]} {[%emt 00:00:38]} Bxd5 {[%clk 00:07:11]} {[%emt 00:00:46]} 19.
Qxd5 {[%clk 00:03:04]} {[%emt 00:00:14]} Na4 {[%clk 00:04:39]} {[%emt
00:02:37]} 20. Re2 {[%clk 00:00:34]} {[%emt 00:02:35]} Nb6 {[%clk 00:03:38]}
{[%emt 00:01:06]} 21. Qd1 {[%clk 00:00:13]} {[%emt 00:00:25]} Qd8 {[%clk
00:03:28]} {[%emt 00:00:15]} 22. Bh6 {[%clk 00:00:06]} {[%emt 00:00:12]} Re8
{[%clk 00:03:27]} {[%emt 00:00:07]} 0-1

[Event "Kvibergspelen 2018"]
[Site "Prioritet Serneke Arena, Krutvagen 2, Gothenburg, Sweden"]
[Date "2018.04.20"]
[Round "4.13"]
[White "Al Hadarani, Hatim"]
[Black "Larsson, Patrik"]
[Result "1-0"]
[TimeControl "15 minutes + 5 seconds per move from move one (Round 1 - 4) / 90 minutes + 30 seconds per move from move one (Round 5 - 8)"]
[WhiteTitle "FM"]
[WhiteFideId "9400273"]
[BlackFideId "1713744"]
[WhiteElo "2334"]
[BlackElo "2006"]

1. c4 {[%clk 00:15:10]} {[%emt 00:02:28]} c5 {[%clk 00:14:55]} {[%emt
00:00:17]} 2. Nc3 {[%clk 00:15:12]} {[%emt 00:00:02]} Nf6 {[%clk 00:14:57]}
{[%emt 00:00:03]} 3. e3 {[%clk 00:15:16]} e6 {[%clk 00:14:58]} {[%emt
00:00:05]} 4. d4 {[%clk 00:15:20]} {[%emt 00:00:01]} d5 {[%clk 00:15:02]} 5.
Nf3 {[%clk 00:15:24]} Nc6 {[%clk 00:15:05]} {[%emt 00:00:03]} 6. a3 {[%clk
00:15:26]} {[%emt 00:00:03]} a6 {[%clk 00:15:09]} {[%emt 00:00:02]} 7. dxc5
{[%clk 00:15:25]} {[%emt 00:00:05]} Bxc5 {[%clk 00:15:05]} {[%emt 00:00:08]} 8.
b4 {[%clk 00:15:28]} {[%emt 00:00:03]} Ba7 {[%clk 00:14:49]} {[%emt 00:00:20]}
9. Bb2 {[%clk 00:14:59]} {[%emt 00:00:34]} d4 {[%clk 00:14:09]} {[%emt
00:00:45]} 10. exd4 {[%clk 00:15:02]} {[%emt 00:00:03]} Nxd4 {[%clk 00:14:11]}
{[%emt 00:00:03]} 11. c5 {[%clk 00:14:54]} {[%emt 00:00:13]} Nxf3+ {[%clk
00:13:48]} {[%emt 00:00:28]} 12. Qxf3 {[%clk 00:14:43]} {[%emt 00:00:16]} Qe7
{[%clk 00:11:46]} {[%emt 00:02:08]} 13. Bxa6 {[%clk 00:13:39]} {[%emt
00:01:09]} Bxc5 {[%clk 00:10:53]} {[%emt 00:00:58]} 14. Bb5+ {[%clk 00:13:35]}
{[%emt 00:00:08]} 1-0